bitfinex/quotes_BTCUSD_20250412
["timestamp","ask_amount","ask_price","bid_price","bid_amount"]
[1744468521449,0.011774,84931.0,84921.0,0.80810106]
[1744468521654,0.011774,84932.0,84921.0,0.81210106]
[1744468521980,0.23541,84958.0,84921.0,0.81210106]
[1744468522188,2.388317,84988.0,84921.0,0.81210106]
[1744468522189,0.01177,84961.0,84952.0,0.011771]
[1744468522357,0.011768,84969.0,84964.0,0.011769]
[1744468522609,0.0471,84979.0,84965.0,0.12084154]
[1744468522610,0.011768,84976.0,84965.0,0.12084154]
[1744468522798,0.011768,84974.0,84966.0,0.235388]
[1744468523000,0.011768,84973.0,84969.0,0.011768]
[1744468523316,0.235375,84971.0,84970.0,0.46510106]
[1744468523856,0.235375,84971.0,84970.0,0.34425952]
[1744468524263,0.235375,84971.0,84966.0,0.00013925]
[1744468524264,0.24992585,84967.0,84966.0,2.5e-07]
[1744468524473,0.30872585,84967.0,84966.0,2.5e-07]
[1744468524671,0.294185,84967.0,84966.0,2.5e-07]
[1744468525123,0.284185,84967.0,84966.0,2.5e-07]
[1744468526421,0.01177,84955.0,84948.0,0.011771]
[1744468526656,0.011771,84951.0,84949.0,0.46524031]
[1744468527140,0.235432,84950.0,84949.0,0.46524031]
[1744468528087,0.235416,84956.0,84950.0,0.011771]
[1744468528336,0.011771,84953.0,84951.0,0.12084154]
[1744468528829,0.235394,84964.0,84951.0,0.12084154]
[1744468528830,0.0488,84981.0,84961.0,0.235401]
[1744468529031,0.011768,84976.0,84970.0,0.247143]
[1744468529205,0.011767,84977.0,84972.0,0.235371]
[1744468529425,0.011768,84974.0,84973.0,0.12084154]
[1744468532152,0.013768,84974.0,84973.0,0.12084154]
[1744468533210,0.235396,84963.0,84962.0,0.34425952]
[1744468534751,0.235396,84963.0,84962.0,0.34525952]
[1744468535215,0.235396,84963.0,84962.0,0.34625952]
[1744468535907,0.235396,84963.0,84962.0,0.34425952]
[1744468536284,0.236396,84963.0,84962.0,0.34425952]
[1744468537096,0.001,84963.0,84962.0,0.46510106]
[1744468537504,0.0008472,84989.0,84988.0,0.235327]
[1744468537662,0.0008472,84989.0,84988.0,0.70042806]
[1744468537871,0.0008472,84989.0,84988.0,0.46510106]
[1744468538280,0.2361712,84989.0,84988.0,0.46510106]
[1744468538595,0.2361712,84989.0,84988.0,0.34425952]
[1744468538792,0.2361712,84989.0,84967.0,0.247151]
[1744468538793,0.235391,84965.0,84964.0,0.0088575]
[1744468538997,0.23539,84966.0,84964.0,0.12084154]
[1744468539203,0.247159,84966.0,84965.0,0.12084154]
[1744468539401,0.011767,84982.0,84975.0,0.011768]
[1744468539613,0.247122,84978.0,84976.0,0.12084154]
[1744468540228,0.247154,84968.0,84965.0,5.2e-07]
[1744468540430,0.247154,84968.0,84966.0,0.12084154]
[1744468540431,0.011769,84968.0,84966.0,0.12084154]
[1744468540629,0.247154,84968.0,84966.0,0.12084154]
[1744468541127,0.235391,84965.0,84964.0,0.001]
[1744468541326,0.235391,84965.0,84964.0,0.12084154]
[1744468541523,0.233391,84965.0,84964.0,0.12084154]
[1744468541847,0.232391,84965.0,84964.0,0.12084154]
[1744468542420,0.011768,84969.0,84964.0,0.12184154]
[1744468542625,0.011768,84970.0,84966.0,0.011769]
[1744468542853,0.011767,84983.0,84971.0,0.011768]
[1744468543051,0.011767,84982.0,84974.0,0.011768]
[1744468543250,0.011767,84982.0,84975.0,0.12084154]
[1744468543251,0.011767,84978.0,84975.0,0.12084154]
[1744468543458,0.235327,84988.0,84981.0,0.011767]
[1744468543678,0.011766,84985.0,84982.0,0.12084154]
[1744468544331,0.235338,84984.0,84982.0,0.12084154]
[1744468545444,0.235338,84984.0,84979.0,0.20248]
[1744468545728,0.235349,84980.0,84979.0,0.20248]
[1744468545955,0.235349,84980.0,84979.0,0.32332154]
[1744468546506,0.235349,84980.0,84979.0,0.12084154]
[1744468546706,0.002,84984.0,84979.0,0.12084154]
[1744468546707,0.011765,84992.0,84983.0,0.235341]
[1744468546939,0.011766,84987.0,84984.0,0.12084154]
[1744468547166,0.011766,84988.0,84984.0,0.12084154]
[1744468547311,0.011766,84987.0,84984.0,0.12084154]
[1744468547516,0.235335,84985.0,84984.0,0.12084154]
[1744468547716,0.0008472,84989.0,84988.0,0.235327]
[1744468547919,0.0028472,84989.0,84988.0,0.35616906]
[1744468548432,0.0018472,84989.0,84988.0,0.35616906]
[1744468548633,0.0018472,84989.0,84988.0,0.12084206]
[1744468548848,0.2371712,84989.0,84988.0,5.2e-07]
[1744468549042,0.23952525,84989.0,84988.0,0.00013977]
[1744468549607,0.23952525,84989.0,84988.0,0.00013925]
[1744468549811,0.23852525,84989.0,84988.0,0.00013925]
[1744468550009,0.24052525,84989.0,84988.0,0.00013925]
[1744468550243,0.24252525,84989.0,84988.0,0.00013925]
[1744468553334,0.2401712,84989.0,84988.0,0.00013925]
[1744468561441,0.2900712,84989.0,84988.0,0.00013925]
[1744468562017,0.3100712,84989.0,84988.0,0.00013925]
[1744468562443,0.74621227,84989.0,84988.0,0.00013925]
[1744468562673,0.235407,84959.0,84953.0,5.2e-07]
[1744468562852,0.235421,84954.0,84953.0,0.00013939]
[1744468563143,0.245421,84954.0,84953.0,0.00013939]
[1744468563658,0.24777505,84954.0,84953.0,0.00013939]
[1744468563862,0.72315744,84954.0,84953.0,3.9e-07]
[1744468564026,0.335182,84932.0,84920.0,5.2e-07]
[1744468564228,0.37972285,84932.0,84917.0,0.08760095]
[1744468564523,0.71972285,84932.0,84931.0,0.00098604]
[1744468564891,0.84056439,84932.0,84931.0,0.00098604]
[1744468565344,0.685182,84932.0,84931.0,0.00098604]
[1744468565544,0.345182,84932.0,84931.0,0.00098604]
[1744468565972,0.058272,84943.0,84931.0,0.00098604]
[1744468566142,0.002,84954.0,84952.0,0.235424]
[1744468566355,0.0481,84963.0,84960.0,0.235403]
[1744468566562,0.0481,84963.0,84954.0,0.235421]
[1744468566563,0.01177,84961.0,84954.0,0.235421]
[1744468566769,0.011767,84978.0,84967.0,0.011769]
[1744468566974,0.247134,84974.0,84968.0,0.12084154]
[1744468567169,0.235377,84970.0,84968.0,0.12084154]
[1744468567376,0.011768,84971.0,84968.0,0.12084154]
[1744468567582,0.011767,84981.0,84972.0,0.23537]
[1744468567790,0.011767,84981.0,84973.0,0.12084154]
[1744468567791,0.011768,84974.0,84973.0,0.12084154]
[1744468567963,0.011768,84974.0,84961.0,0.01177]
[1744468567964,0.235379,84969.0,84968.0,0.00013944]
[1744468568166,0.23773305,84969.0,84968.0,0.00013944]
[1744468568369,0.23773305,84969.0,84968.0,0.00113944]
[1744468569220,0.68233305,84969.0,84968.0,0.00113944]
[1744468569372,0.329979,84969.0,84968.0,0.00113944]
[1744468569551,0.235379,84969.0,84968.0,0.00013944]
[1744468570125,0.23873305,84969.0,84968.0,0.00013944]
[1744468571378,0.236379,84969.0,84968.0,0.00013944]
[1744468571600,0.001,84969.0,84968.0,0.12098098]
[1744468571763,0.001,84969.0,84968.0,0.3563635]
[1744468572522,0.001,84969.0,84968.0,0.00013944]
[1744468572719,0.00335405,84969.0,84968.0,0.00013944]
[1744468573445,0.235377,84970.0,84968.0,0.00113944]
[1744468573770,0.00235405,84969.0,84968.0,0.00313944]
[1744468573974,0.00235405,84969.0,84968.0,0.00213944]
[1744468574192,0.00335405,84969.0,84968.0,0.00213944]
[1744468574579,0.00235405,84969.0,84968.0,0.00013944]
[1744468575380,0.00535405,84969.0,84968.0,0.00013944]
[1744468575583,0.05165405,84969.0,84968.0,0.00013944]
[1744468575818,0.09855405,84969.0,84968.0,0.00013944]
[1744468575968,0.10055405,84969.0,84968.0,0.00013944]
[1744468576591,0.09755405,84969.0,84968.0,0.00013944]
[1744468576794,0.24293644,84969.0,84968.0,0.00013944]
[1744468576939,0.24593644,84969.0,84968.0,0.00013944]
[1744468577137,0.58593644,84969.0,84968.0,3.94e-05]
[1744468577374,0.235474,84935.0,84931.0,0.0008466]
[1744468577753,0.247243,84937.0,84931.0,0.0008466]
[1744468577873,0.011773,84940.0,84937.0,0.235466]
[1744468578227,0.011772,84941.0,84938.0,0.12084154]
[1744468578433,0.011772,84941.0,84934.0,0.0008464]
[1744468578434,0.011773,84937.0,84934.0,0.0008464]
[1744468578578,0.23782505,84936.0,84934.0,0.0008464]
[1744468579485,0.23782505,84936.0,84934.0,0.0028464]
[1744468579731,0.23782505,84936.0,84934.0,0.0048464]
[1744468579926,0.23782505,84936.0,84934.0,0.0028464]
[1744468580080,0.23782505,84936.0,84934.0,0.0048464]
[1744468580283,0.23782505,84936.0,84934.0,0.0068464]
[1744468580495,0.01454085,84935.0,84934.0,0.0068464]
[1744468580721,0.50454085,84935.0,84934.0,0.0068464]
[1744468581547,0.49,84935.0,84934.0,0.0028464]
[1744468582121,0.50454085,84935.0,84934.0,0.0008464]
[1744468582324,0.50654085,84935.0,84934.0,0.0008464]
[1744468582799,0.50954085,84935.0,84934.0,0.0008464]
[1744468583361,0.63026933,84935.0,84934.0,0.0008464]
[1744468583764,0.63038239,84935.0,84934.0,0.0008464]
[1744468583972,0.63038239,84935.0,84915.0,8e-07]
[1744468583973,0.59006685,84916.0,84915.0,8e-07]
[1744468584208,0.88090839,84916.0,84915.0,8e-07]
[1744468584406,0.405526,84916.0,84915.0,8e-07]
[1744468584851,0.17,84916.0,84915.0,8e-07]
[1744468585020,0.17235405,84916.0,84915.0,8e-07]
[1744468585545,0.30773644,84916.0,84915.0,8e-07]
[1744468585720,0.64538239,84916.0,84915.0,8e-07]
[1744468586104,0.65138239,84916.0,84915.0,8e-07]
[1744468586298,0.65338239,84916.0,84915.0,8e-07]
[1744468586770,0.65438239,84916.0,84915.0,8e-07]
[1744468586934,0.64538239,84916.0,84915.0,8e-07]
[1744468587114,0.514,84916.0,84915.0,8e-07]
[1744468587326,0.02,84916.0,84915.0,8e-07]
[1744468587633,0.25788005,84916.0,84915.0,8e-07]
[1744468587817,0.255526,84916.0,84915.0,8e-07]
[1744468588013,0.01,84916.0,84915.0,8e-07]
[1744468588260,0.00835405,84916.0,84915.0,8e-07]
[1744468588774,0.01135405,84916.0,84915.0,8e-07]
[1744468588971,0.00535405,84916.0,84915.0,8e-07]
[1744468589191,0.00735405,84916.0,84915.0,0.2355298]
[1744468589391,0.61079559,84916.0,84915.0,8e-07]
[1744468589687,0.62798239,84916.0,84915.0,8e-07]
[1744468590033,0.62598239,84916.0,84915.0,8e-07]
[1744468590471,0.61798239,84916.0,84915.0,8e-07]
[1744468590882,0.62398239,84916.0,84915.0,8e-07]
[1744468591085,0.25010085,84904.0,84902.0,0.05]
[1744468591266,0.47773644,84903.0,84902.0,0.05]
[1744468591463,0.65538239,84903.0,84902.0,0.05]
[1744468592430,0.7056217,84903.0,84902.0,0.05]
[1744468593326,0.7066217,84903.0,84902.0,0.05]
[1744468593541,0.7066217,84903.0,84902.0,1e-06]
[1744468593942,0.57123931,84903.0,84902.0,1e-06]
[1744468594358,0.18113931,84903.0,84902.0,1e-06]
[1744468594556,0.25010585,84902.0,84900.0,8e-07]
[1744468594714,0.13773644,84901.0,84900.0,8e-07]
[1744468594920,0.25011685,84898.0,84897.0,4e-07]
[1744468595117,0.88095839,84898.0,84897.0,4e-07]
[1744468596239,0.01454085,84886.0,84883.0,2e-07]
[1744468596469,0.25015585,84884.0,84883.0,2e-07]
[1744468596677,0.43015585,84884.0,84883.0,2e-07]
[1744468597938,0.415615,84884.0,84883.0,2e-07]
[1744468598104,0.235615,84884.0,84883.0,2e-07]
[1744468598331,0.23796905,84884.0,84883.0,2e-07]
[1744468598538,0.24896905,84884.0,84883.0,2e-07]
[1744468600513,0.235621,84882.0,84881.0,0.000324]
[1744468600697,0.24797505,84882.0,84881.0,0.000324]
[1744468600925,0.2625159,84882.0,84881.0,0.000324]
[1744468601140,0.63856685,84880.0,84879.0,6e-07]
[1744468601340,0.92940839,84880.0,84879.0,6e-07]
[1744468602449,0.93240839,84880.0,84879.0,6e-07]
[1744468602713,0.93240839,84880.0,84869.0,0.00032499]
[1744468602714,0.23447928,84870.0,84869.0,0.00032499]
[1744468603065,0.25683333,84870.0,84869.0,0.00032499]
[1744468603298,0.25447928,84870.0,84869.0,0.00032499]
[1744468603862,0.25547928,84870.0,84869.0,0.00032499]
[1744468604218,0.25561851,84870.0,84869.0,0.00032499]
[1744468604577,0.25761851,84870.0,84869.0,0.00032499]
[1744468604774,0.30691851,84870.0,84869.0,0.00032499]
[1744468605339,0.66145936,84870.0,84869.0,0.00032499]
[1744468605543,0.7823009,84870.0,84869.0,0.00032499]
[1744468606183,0.66145936,84870.0,84869.0,0.00032499]
[1744468607401,0.65845936,84870.0,84869.0,0.00032499]
[1744468607604,0.66245936,84870.0,84869.0,0.00032499]
[1744468607786,0.66945936,84870.0,84869.0,0.00032499]
[1744468609184,0.29491851,84870.0,84869.0,0.00032499]
[1744468609468,0.24561851,84870.0,84869.0,0.00032499]
[1744468609679,0.24797256,84870.0,84869.0,0.00032499]
[1744468611055,0.25797256,84870.0,84869.0,0.00032499]
[1744468611262,0.25561851,84870.0,84869.0,0.00032499]
[1744468611911,0.27015936,84870.0,84869.0,0.00032499]
[1744468612124,0.25561851,84870.0,84869.0,0.00032499]
[1744468612508,0.27015936,84870.0,84869.0,0.00032499]
[1744468613240,0.29209317,84870.0,84869.0,0.00032499]
[1744468613875,0.30306386,84870.0,84869.0,9.9e-07]
[1744468614298,0.4239054,84870.0,84869.0,9.9e-07]
[1744468615040,0.43325892,84870.0,84869.0,9.9e-07]
[1744468615883,0.77325892,84870.0,84869.0,9.9e-07]
[1744468616088,0.62852301,84870.0,84869.0,9.9e-07]
[1744468617002,0.61355232,84870.0,84869.0,9.9e-07]
[1744468617205,0.59161851,84870.0,84869.0,9.9e-07]
[1744468617420,0.59561851,84870.0,84869.0,9.9e-07]
[1744468617575,0.58861851,84870.0,84869.0,9.9e-07]
[1744468617772,0.59915936,84870.0,84869.0,9.9e-07]
[1744468617975,0.59061851,84870.0,84869.0,9.9e-07]
[1744468618313,0.25061851,84870.0,84869.0,9.9e-07]
[1744468618515,0.25661851,84870.0,84869.0,9.9e-07]
[1744468618831,0.00047901,84869.0,84868.0,0.0004235]
[1744468618983,0.02283306,84869.0,84868.0,0.0004235]
[1744468619606,0.03737391,84869.0,84868.0,0.0004235]
[1744468620126,0.05236583,84869.0,84868.0,0.0004235]
[1744468620283,0.03782498,84869.0,84868.0,0.0004235]
[1744468620730,0.00447901,84869.0,84868.0,0.0004235]
[1744468620894,0.01047901,84869.0,84868.0,0.35692504]
[1744468621300,0.01047901,84869.0,84868.0,0.12126504]
[1744468621658,0.25849006,84869.0,84868.0,0.0004235]
[1744468621808,0.25613601,84869.0,84868.0,0.0004235]
[1744468622012,0.25013601,84869.0,84868.0,0.0004235]
[1744468622214,0.24613601,84869.0,84868.0,0.0004235]
[1744468622415,0.60603091,84869.0,84868.0,0.0004235]
[1744468622597,0.7265184,84869.0,84868.0,0.0004235]
[1744468623000,0.59113601,84869.0,84868.0,0.0004235]
[1744468623201,0.58913601,84869.0,84868.0,0.0004235]
[1744468623402,0.59413601,84869.0,84868.0,0.0004235]
[1744468623662,0.59113601,84869.0,84868.0,0.0004235]
[1744468623845,0.59113601,84869.0,84868.0,0.0014235]
[1744468624193,0.60013601,84869.0,84868.0,0.0014235]
[1744468624525,0.61467686,84869.0,84868.0,0.0014235]
[1744468624724,0.7355184,84869.0,84868.0,0.0014235]
[1744468625266,0.61467686,84869.0,84868.0,0.0014235]
[1744468625467,0.60013601,84869.0,84868.0,0.0014235]
[1744468626604,0.26013601,84869.0,84868.0,0.0014235]
[1744468627788,0.25013601,84869.0,84868.0,0.0014235]
[1744468628524,0.01447901,84869.0,84868.0,0.2370835]
[1744468628722,0.01447901,84869.0,84868.0,0.35792504]
[1744468629331,0.00947901,84869.0,84868.0,0.35792504]
[1744468629486,0.00947901,84869.0,84868.0,0.39038832]
[1744468629687,0.00347901,84869.0,84868.0,0.38938832]
[1744468630120,0.00447901,84869.0,84868.0,0.38938832]
[1744468630657,0.00547901,84869.0,84868.0,0.35692504]
[1744468632076,0.00547901,84869.0,84868.0,0.72940927]
[1744468632937,0.00047901,84869.0,84868.0,0.72940927]
[1744468633137,0.00047901,84869.0,84868.0,0.73240927]
[1744468634145,0.00047901,84869.0,84868.0,0.66622556]
[1744468635258,0.00047901,84869.0,84868.0,0.61622556]
[1744468635464,0.00047901,84869.0,84868.0,0.54496052]
[1744468636465,0.00047901,84869.0,84868.0,0.90146206]
[1744468637489,0.00047901,84869.0,84868.0,0.69950206]
[1744468637805,0.00047901,84869.0,84868.0,0.90146206]
[1744468638156,0.00047901,84869.0,84868.0,0.54496052]
[1744468638358,0.00047901,84869.0,84868.0,0.00300052]
[1744468638567,0.23613601,84869.0,84868.0,0.20492052]
[1744468638963,0.00047901,84869.0,84868.0,0.20492052]
[1744468639377,0.00013923,84870.0,84868.0,0.20392052]
[1744468640556,0.00013923,84870.0,84868.0,0.20192052]
[1744468640891,0.235657,84869.0,84868.0,0.20192052]
[1744468642627,0.235657,84869.0,84868.0,0.20192]
[1744468643004,0.235657,84869.0,84860.0,1.21276]
[1744468643005,0.235676,84862.0,84860.0,1.21276]
[1744468643276,0.26803005,84862.0,84851.0,0.20164]
[1744468643500,0.310676,84862.0,84851.0,0.20164]
[1744468644193,0.310676,84862.0,84861.0,0.01247367]
[1744468644550,0.001,84862.0,84861.0,0.01247367]
[1744468644738,0.00335405,84862.0,84861.0,0.01247367]
[1744468645396,0.001,84862.0,84861.0,0.13331521]
[1744468645799,0.002,84862.0,84861.0,0.13331521]
[1744468646015,0.002,84862.0,84861.0,0.13331573]
[1744468646573,0.001,84862.0,84861.0,0.13331573]
[1744468646769,0.001,84862.0,84861.0,0.13431573]
[1744468647063,0.00013923,84870.0,84868.0,0.235659]
[1744468647233,0.00013923,84870.0,84869.0,0.12084154]
[1744468647461,0.23566,84869.0,84867.0,0.20164]
[1744468647774,0.00235405,84868.0,84867.0,0.20164]
[1744468647977,0.23801405,84869.0,84867.0,0.20164]
[1744468648673,0.23801405,84869.0,84867.0,0.20264]
[1744468649035,0.23801405,84869.0,84867.0,0.20364]
[1744468649231,0.00235405,84869.0,84867.0,0.20364]
[1744468649453,0.23801405,84869.0,84867.0,0.20364]
[1744468649655,0.00235405,84869.0,84867.0,0.20264]
[1744468650265,0.23801405,84869.0,84867.0,0.20264]
[1744468650464,0.23801405,84869.0,84867.0,0.20164]
[1744468650806,0.23901405,84869.0,84867.0,0.20164]
[1744468650929,0.23666,84869.0,84867.0,0.20164]
[1744468651579,0.23566,84869.0,84867.0,0.20164]
[1744468651802,0.003,84869.0,84867.0,0.20164]
[1744468652160,0.002,84869.0,84867.0,0.20164]
[1744468652579,0.004,84869.0,84867.0,0.20164]
[1744468652792,0.004,84869.0,84868.0,0.35650154]
[1744468652998,0.002,84869.0,84868.0,0.35650154]
[1744468653195,0.002,84869.0,84868.0,0.12084154]
[1744468653608,0.00013923,84870.0,84868.0,0.12084154]
[1744468654196,0.00013923,84870.0,84868.0,0.35649954]
[1744468655921,0.235657,84869.0,84868.0,0.12084154]
[1744468656120,0.00013923,84870.0,84868.0,0.12084154]
[1744468656356,0.00013923,84870.0,84868.0,0.35750054]
[1744468656940,0.00013923,84870.0,84868.0,0.35850054]
[1744468657313,0.00013923,84870.0,84868.0,0.35750054]
[1744468657463,0.00113923,84870.0,84868.0,0.35750054]
[1744468657679,0.00113923,84870.0,84869.0,0.00235646]
[1744468657880,2.3e-07,84870.0,84869.0,0.46319852]
[1744468658081,2.3e-07,84870.0,84869.0,1.72051192]
[1744468658459,0.011778,84900.0,84869.0,1.72051192]
[1744468658460,0.01178,84883.0,84875.0,0.011782]
[1744468658658,0.247392,84886.0,84879.0,0.235626]
[1744468658659,0.01178,84884.0,84879.0,0.235626]
[1744468658865,0.247385,84888.0,84881.0,0.011781]
[1744468659069,0.247354,84899.0,84892.0,0.235591]
[1744468659270,0.247361,84896.0,84893.0,0.12084154]
[1744468659497,0.011779,84892.0,84889.0,0.20164]
[1744468659700,0.247373,84892.0,84889.0,0.20164]
[1744468660593,0.23795205,84891.0,84889.0,0.20116]
[1744468661222,0.00235405,84891.0,84889.0,0.20116]
[1744468661540,0.001,84892.0,84890.0,0.235599]
[1744468661768,0.0008458,84903.0,84898.0,0.011778]
[1744468661917,0.0008458,84903.0,84900.0,0.235568]
[1744468662102,0.0008458,84903.0,84902.0,0.235565]
[1744468662704,0.0008458,84903.0,84900.0,0.235568]
[1744468663107,0.0008458,84903.0,84902.0,0.235565]
[1744468663309,0.00098513,84903.0,84902.0,0.235565]
[1744468663537,0.00598513,84903.0,84902.0,0.235565]
[1744468664371,0.00098513,84903.0,84902.0,0.235565]
[1744468664661,0.00298513,84903.0,84902.0,0.235565]
[1744468664805,0.00098513,84903.0,84902.0,0.235565]
[1744468665332,0.00098513,84903.0,84902.0,0.236565]
[1744468665916,0.00098513,84903.0,84902.0,0.35740654]
[1744468667422,0.00098513,84903.0,84902.0,0.35740706]
[1744468667664,0.00098513,84903.0,84902.0,0.36623243]
[1744468667861,0.00098513,84903.0,84902.0,0.70623243]
[1744468668776,0.00098513,84903.0,84902.0,0.70436986]
[1744468669323,0.00098513,84903.0,84902.0,0.71991071]
[1744468669835,0.00098513,84903.0,84902.0,0.71891071]
[1744468670222,0.00098513,84903.0,84902.0,0.90796986]
[1744468670763,0.00098513,84903.0,84902.0,0.90696986]
[1744468670958,0.00098513,84903.0,84902.0,0.90496986]
[1744468671161,0.00098513,84903.0,84902.0,0.90696986]
[1744468671369,0.00098513,84903.0,84902.0,0.90896986]
[1744468672164,0.0126188,84937.0,84922.0,0.011775]
[1744468672363,0.011773,84936.0,84930.0,0.235487]
[1744468672560,0.0008458,84937.0,84933.0,0.235479]
[1744468672765,0.0008458,84937.0,84934.0,0.12084154]
[1744468672966,0.011774,84926.0,84923.0,0.60976]
[1744468673167,0.247275,84926.0,84923.0,0.60976]
[1744468673390,0.01412805,84928.0,84923.0,0.60976]
[1744468673587,0.01412805,84928.0,84923.0,0.61010885]
[1744468673588,0.011774,84927.0,84923.0,0.61010885]
[1744468673796,0.00235405,84928.0,84924.0,0.235502]
[1744468674210,0.00235405,84928.0,84924.0,0.24506705]
[1744468675404,0.235504,84924.0,84923.0,0.00034885]
[1744468675723,0.40785805,84924.0,84923.0,0.00034885]
[1744468675871,0.405504,84924.0,84923.0,0.00034885]
[1744468676082,0.235533,84914.0,84912.0,0.2005937]
[1744468676403,0.23788705,84914.0,84912.0,0.20105817]
[1744468676811,0.00235405,84914.0,84912.0,0.20105817]
[1744468677309,0.23788705,84914.0,84912.0,0.20105817]
[1744468677648,0.235533,84914.0,84912.0,0.20105817]
[1744468678076,0.235533,84914.0,84912.0,0.20205817]
[1744468678480,0.235533,84914.0,84912.0,0.00146447]
[1744468678628,0.00235405,84913.0,84912.0,0.00146447]
[1744468679321,0.10715405,84913.0,84912.0,0.00146447]
[1744468679535,0.10715405,84913.0,84912.0,0.00346447]
[1744468679736,0.33268905,84913.0,84912.0,0.00346447]
[1744468679942,0.330335,84913.0,84912.0,0.00046447]
[1744468680146,0.330335,84913.0,84912.0,0.00346447]
[1744468680660,0.332335,84913.0,84912.0,0.00246447]
[1744468680816,0.352335,84913.0,84912.0,0.00246447]
[1744468681020,0.354335,84913.0,84912.0,0.00246447]
[1744468681444,0.352335,84913.0,84912.0,0.00046447]
[1744468682810,0.350335,84913.0,84912.0,0.00046447]
[1744468682961,0.353335,84913.0,84912.0,0.00046447]
[1744468683165,0.357335,84913.0,84912.0,0.00046447]
[1744468683564,0.363335,84913.0,84912.0,0.00046447]
[1744468684650,0.013,84913.0,84912.0,0.00046447]
[1744468684992,0.013,84913.0,84912.0,0.69684301]
[1744468685198,0.013,84913.0,84912.0,1.10504301]
[1744468685684,0.013,84913.0,84912.0,1.11396935]
[1744468686036,0.01497285,84937.0,84933.0,0.235478]
[1744468686243,0.0126188,84937.0,84933.0,0.235478]
[1744468686658,0.0008458,84937.0,84936.0,0.235471]
[1744468686865,0.0008458,84937.0,84936.0,0.35866695]
[1744468687043,0.0008458,84937.0,84936.0,0.35631254]
[1744468687445,0.0048458,84937.0,84936.0,0.35631254]
[1744468687782,0.0048458,84937.0,84936.0,0.12084154]
[1744468689095,0.0058458,84937.0,84936.0,0.12084154]
[1744468689297,0.0028458,84937.0,84936.0,0.12084154]
[1744468689542,0.0028458,84937.0,84936.0,0.1231959]
[1744468689744,0.0018458,84937.0,84936.0,0.1231959]
[1744468689965,0.0018458,84937.0,84936.0,0.12084154]
[1744468690906,0.0018458,84937.0,84936.0,0.12184154]
[1744468691164,0.0018458,84937.0,84936.0,0.32304154]
[1744468691525,0.0018458,84937.0,84936.0,0.2022]
[1744468692160,0.0018458,84937.0,84936.0,0.436671]
[1744468692712,0.0018458,84937.0,84936.0,0.55751254]
[1744468692928,0.0008458,84937.0,84936.0,0.55751254]
[1744468694312,0.0008458,84937.0,84936.0,0.55851254]
[1744468695358,0.0008458,84937.0,84936.0,0.56051254]
[1744468695659,0.0008458,84937.0,84936.0,0.55751254]
[1744468695871,0.0008458,84937.0,84936.0,0.56051254]
[1744468696241,0.0008458,84937.0,84936.0,0.55751254]
[1744468696446,0.0008458,84937.0,84936.0,0.55951254]
[1744468696629,0.0008458,84937.0,84936.0,0.96871254]
[1744468697251,0.0008458,84937.0,84936.0,0.96771254]
[1744468698004,0.0008458,84937.0,84936.0,0.96767254]
[1744468698203,0.0008458,84937.0,84936.0,0.96567254]
[1744468698713,0.0008458,84937.0,84936.0,0.96867254]
[1744468698884,0.0008458,84937.0,84936.0,0.96711969]
[1744468699116,0.0008458,84937.0,84936.0,0.73320154]
[1744468699660,0.0008458,84937.0,84936.0,0.61236]
[1744468699860,0.0008458,84937.0,84936.0,0.61136]
[1744468700303,0.0008458,84937.0,84936.0,0.61236]
[1744468701850,0.0008458,84937.0,84936.0,0.60936]
[1744468702052,0.0018458,84937.0,84936.0,0.60936]
[1744468702257,0.0018458,84937.0,84936.0,0.4082]
[1744468702415,0.0018458,84937.0,84895.0,0.001]
[1744468702416,0.247284,84923.0,84920.0,0.4082]
[1744468702610,0.00235405,84922.0,84920.0,0.4082]
[1744468702820,0.235513,84921.0,84920.0,0.4082]
[1744468703194,0.00235405,84922.0,84920.0,0.4082]
[1744468703779,0.247284,84923.0,84920.0,0.4112]
[1744468704185,0.011775,84923.0,84920.0,0.4112]
[1744468704669,0.011775,84924.0,84920.0,0.4112]
[1744468704814,0.011775,84924.0,84920.0,0.4092]
[1744468705012,0.001,84921.0,84920.0,0.420975]
[1744468705218,0.001,84921.0,84920.0,0.52904154]
[1744468705476,0.011774,84927.0,84921.0,0.235513]
[1744468705666,0.001,84922.0,84921.0,0.235513]
[1744468705870,0.001,84922.0,84920.0,0.52904154]
[1744468705871,0.001,84922.0,84920.0,0.4082]
[1744468706202,0.235513,84921.0,84920.0,0.4082]
[1744468706397,0.235513,84921.0,84920.0,0.002]
[1744468706612,0.010775,84919.0,84916.0,0.20116]
[1744468706808,0.00235405,84918.0,84916.0,0.20116]
[1744468707010,0.235535,84913.0,84907.0,0.01011195]
[1744468707186,0.235535,84913.0,84894.0,0.20076]
[1744468707187,0.45578905,84913.0,84894.0,0.20076]
[1744468707395,0.52686839,84913.0,84894.0,0.20076]
[1744468707808,0.504935,84913.0,84894.0,0.20076]
[1744468708230,0.504935,84913.0,84894.0,0.436347]
[1744468708390,0.504935,84913.0,84896.0,0.235581]
[1744468708822,0.504935,84913.0,84900.0,0.23557]
[1744468709185,0.504935,84913.0,84906.0,0.235554]
[1744468709186,0.007,84913.0,84906.0,0.235554]
[1744468709434,0.007,84913.0,84902.0,0.235563]
[1744468709566,0.007,84913.0,84900.0,0.011778]
[1744468709567,0.01235405,84913.0,84900.0,0.235568]
[1744468709769,0.01035405,84913.0,84900.0,0.235568]
[1744468709999,0.01435405,84913.0,84902.0,0.235565]
[1744468710297,0.25088905,84913.0,84902.0,0.235565]
[1744468710494,0.250535,84913.0,84902.0,0.235565]
[1744468710695,0.015,84913.0,84904.0,0.235559]
[1744468710894,0.005,84913.0,84905.0,0.011777]
[1744468711097,0.236535,84913.0,84906.0,0.235553]
[1744468711349,0.005,84913.0,84912.0,0.12130601]
[1744468711509,0.005,84913.0,84912.0,0.52950601]
[1744468712495,0.011776,84915.0,84912.0,0.52950601]
[1744468713294,0.002,84913.0,84912.0,0.52950601]
[1744468713624,0.005,84913.0,84912.0,0.52950601]
[1744468714239,0.18548239,84913.0,84912.0,0.00046447]
[1744468714415,0.85761739,84913.0,84912.0,0.00046447]
[1744468714615,0.722235,84913.0,84912.0,0.00046447]
[1744468715245,0.84877101,84913.0,84912.0,4.7e-07]
[1744468715450,0.235587,84894.0,84893.0,0.2008]
[1744468715808,0.235627,84880.0,84878.0,0.0004227]
[1744468716033,0.235627,84880.0,84879.0,0.20084]
[1744468717096,0.23609157,84880.0,84879.0,0.20084]
[1744468717325,0.00046457,84880.0,84879.0,0.20084]